fUSD/lending_fUSD_20241111
["ID","MTS","AMOUNT","RATE_DAILY","PERIOD"]
[342003509,1731358235828,-500.0,0.00013698,2]
[342003510,1731358235837,-500.0,0.00013698,2]
[342003511,1731358235846,-500.0,0.00013698,2]
[342003512,1731358235855,-500.0,0.00013698,2]
[342003513,1731358235863,-500.0,0.00013698,2]
[342003514,1731358235872,-519.90478637,0.00013698,2]
[342003515,1731358235882,-500.0,0.00013698,2]
[342003516,1731358235891,-362.46843054,0.00013698,2]
[342003517,1731358235900,-500.0,0.00013698,2]
[342003518,1731358235909,-500.0,0.00013698,2]
[342003519,1731358235918,-697.65,0.00013698,2]
[342003520,1731358235927,-500.0,0.00013698,2]
[342003521,1731358235936,-500.0,0.00013698,2]
[342003522,1731358235945,-500.0,0.00013698,2]
[342003523,1731358235954,-500.0,0.00013698,2]
[342003524,1731358235963,-500.0,0.00013698,2]
[342003525,1731358235973,-500.0,0.00013698,2]
[342003526,1731358235982,-500.0,0.00013698,2]
[342003527,1731358235991,-500.0,0.00013698,2]
[342003528,1731358236000,-500.0,0.00013698,2]
[342003529,1731358236009,-500.0,0.00013698,2]
[342003530,1731358236018,-500.0,0.00013698,2]
[342003531,1731358236027,-500.0,0.00013698,2]
[342003532,1731358236035,-500.0,0.00013698,2]
[342003533,1731358236045,-608.97190231,0.00013698,2]
[342003534,1731358236055,-500.0,0.00013698,2]
[342003535,1731358236063,-500.0,0.00013698,2]
[342003536,1731358236072,-500.0,0.00013698,2]
[342003537,1731358236082,-500.0,0.00013698,2]
[342003538,1731358236092,-500.0,0.00013698,2]
[342003539,1731358236101,-500.0,0.00013698,2]
[342003540,1731358236110,-500.0,0.00013698,2]
[342003541,1731358236119,-500.0,0.00013698,2]
[342003542,1731358236128,-500.0,0.00013698,2]
[342003543,1731358236141,-500.0,0.00013698,2]
[342003544,1731358236151,-500.0,0.00013698,2]
[342003545,1731358236160,-500.0,0.00013698,2]
[342003546,1731358236170,-500.0,0.00013698,2]
[342003547,1731358236179,-500.0,0.00013698,2]
[342003548,1731358236188,-500.0,0.00013698,2]
[342003549,1731358236201,-500.0,0.00013698,2]
[342003550,1731358236210,-328.78121082,0.00013698,2]
[342003551,1731358236219,-500.0,0.00013698,2]
[342003552,1731358236228,-505.73543995,0.00013698,2]
[342003553,1731358236391,-500.0,0.00013698,2]
[342003554,1731358236400,-500.0,0.00013698,2]
[342003555,1731358236409,-500.0,0.00013698,2]
[342003556,1731358236418,-1089.83,0.00013698,2]
[342003557,1731358236428,-170.32307635,0.00013698,2]
[342003558,1731358236437,-259.91036408,0.00013698,2]
[342003559,1731358236447,-165.9872618,0.00013698,2]
[342003560,1731358236457,-500.0,0.00013698,2]
[342003561,1731358236466,-500.0,0.00013698,2]
[342003562,1731358236475,-500.0,0.00013698,2]
[342003563,1731358236485,-500.0,0.00013698,2]
[342003564,1731358236494,-500.0,0.00013698,2]
[342003565,1731358236504,-500.0,0.00013698,2]
[342003566,1731358236513,-249.624188,0.00013698,2]
[342003567,1731358236523,-525.93667867,0.00013698,2]
[342003568,1731358236532,-500.0,0.00013698,2]
[342003569,1731358236542,-622.72695579,0.00013698,2]
[342003570,1731358236551,-1187.41,0.00013698,2]
[342003571,1731358236560,-500.0,0.00013698,2]
[342003572,1731358236570,-1663.89,0.00013698,2]
[342003573,1731358236580,-500.0,0.00013698,2]
[342003574,1731358236589,-606.06,0.00013698,2]
[342003575,1731358236598,-500.0,0.00013698,2]
[342003576,1731358236608,-500.0,0.00013698,2]
[342003577,1731358236617,-547.79,0.00013698,2]
[342003578,1731358236626,-500.0,0.00013698,2]
[342003579,1731358236640,-500.0,0.00013698,2]
[342003580,1731358236649,-500.0,0.00013698,2]
[342003581,1731358236658,-505.9304721,0.00013698,2]
[342003582,1731358236668,-500.0,0.00013698,2]
[342003583,1731358236677,-500.0,0.00013698,2]
[342003584,1731358236687,-245.60523743,0.00013698,2]
[342003585,1731358236696,-500.0,0.00013698,2]
[342003586,1731358236706,-500.0,0.00013698,2]
[342003587,1731358236715,-500.0,0.00013698,2]
[342003588,1731358236728,-500.0,0.00013698,2]
[342003589,1731358236737,-500.0,0.00013698,2]
[342003590,1731358236746,-608.62207657,0.00013698,2]
[342003591,1731358236755,-500.0,0.00013698,2]
[342003592,1731358236765,-500.0,0.00013698,2]
[342003593,1731358236774,-500.0,0.00013698,2]
[342003594,1731358236784,-500.0,0.00013698,2]
[342003595,1731358236793,-642.90285578,0.00013698,2]
[342003596,1731358236804,-500.0,0.00013698,2]
[342003597,1731358236814,-500.0,0.00013698,2]
[342003598,1731358236823,-500.0,0.00013698,2]
[342003599,1731358236832,-500.0,0.00013698,2]
[342003600,1731358236841,-500.0,0.00013698,2]
[342003601,1731358236850,-500.0,0.00013698,2]
[342003602,1731358236860,-500.0,0.00013698,2]
[342003603,1731358236869,-500.0,0.00013698,2]
[342003604,1731358236878,-500.0,0.00013698,2]
[342003605,1731358236894,-294.10006935,0.00013698,2]
[342003606,1731358236905,-500.0,0.00013698,2]
[342003607,1731358236915,-500.0,0.00013698,2]
[342003608,1731358236923,-500.0,0.00013698,2]
[342003609,1731358236933,-500.0,0.00013698,2]
[342003610,1731358236943,-500.0,0.00013698,2]
[342003611,1731358236952,-500.0,0.00013698,2]
[342003612,1731358236962,-500.0,0.00013698,2]
[342003613,1731358236971,-500.0,0.00013698,2]
[342003614,1731358236980,-500.0,0.00013698,2]
[342003615,1731358236990,-500.0,0.00013698,2]
[342003616,1731358236999,-500.0,0.00013698,2]
[342003617,1731358237008,-500.0,0.00013698,2]
[342003618,1731358237018,-528.92,0.00013698,2]
[342003619,1731358237027,-500.0,0.00013698,2]
[342003620,1731358237037,-500.0,0.00013698,2]
[342003621,1731358237046,-547.13,0.00013698,2]
[342003622,1731358237055,-500.0,0.00013698,2]
[342003623,1731358237064,-500.0,0.00013698,2]
[342003624,1731358237074,-500.0,0.00013698,2]
[342003625,1731358237083,-500.0,0.00013698,2]
[342003626,1731358237092,-500.0,0.00013698,2]
[342003627,1731358237102,-500.0,0.00013698,2]
[342003628,1731358237111,-500.0,0.00013698,2]
[342003629,1731358237120,-500.0,0.00013698,2]
[342003630,1731358237130,-500.0,0.00013698,2]
[342003631,1731358237142,-182.86839366,0.00013698,2]
[342003632,1731358237151,-500.0,0.00013698,2]
[342003633,1731358237161,-151.0,0.00013698,2]
[342003634,1731358237171,-341.53842508,0.00013698,2]
[342003635,1731358237180,-500.0,0.00013698,2]
[342003636,1731358237189,-500.0,0.00013698,2]
[342003637,1731358237199,-414.46401161,0.00013698,2]
[342003638,1731358237209,-150.0,0.00013699,2]
[342003639,1731358237218,-200.0,0.00013699,2]
[342003640,1731358237228,-250.0,0.00013699,2]
[342003641,1731358237238,-1700.0,0.000137,5]
[342003642,1731358237247,-291.44,0.00013707,2]
[342003643,1731358237257,-7226.01883937,0.00013743,2]
[342003644,1731358237266,-300.0,0.000138,5]
[342003645,1731358237276,-426.22825879,0.00013822,2]
[342003647,1731358237286,-262.69689593,0.00013859,2]
[342003648,1731358237295,-262.69689593,0.00013859,2]
[342003650,1731358237305,-6106.40429274,0.0001386,2]
[342003651,1731358237314,-16266.56933907,0.00013861,2]
[342003652,1731358237323,-862022.2470505,0.00013862,2]
[342003653,1731358237332,-563.0,0.00013864,2]
[342003654,1731358237341,-628.0,0.00013864,2]
[342003655,1731358237350,-150.243,0.00013864,2]
[342003656,1731358237359,-262.69689593,0.00013864,2]
[342003657,1731358237368,-50655.64636401,0.00013868,2]
[342003658,1731358237377,-129034.80577198,0.00013868,2]
[342003659,1731358237390,-16266.56933907,0.00013869,2]
[342003660,1731358237399,-862022.2470505,0.00013869,2]
[342003661,1731358237409,-6106.40429274,0.0001387,2]
[342003662,1731358237418,-16266.56933907,0.00013871,2]
[342003663,1731358237427,-846.80503554,0.00013872,2]
[342003664,1731358237437,-1000.0,0.00013872,2]
[342003665,1731358237446,-643296.19496765,0.00013873,2]
[342003667,1731358237472,-218726.05208285,0.00013873,2]
[342003669,1731358237481,-262.69689593,0.00013873,2]
[342003671,1731358237491,-6106.40429274,0.00013874,2]
[342003672,1731358237500,-50655.64636401,0.00013875,2]
[342003673,1731358237510,-862022.2470505,0.00013875,2]
[342003674,1731358237519,-262.69689593,0.00013876,2]
[342003675,1731358237529,-846.80503554,0.00013877,2]
[342003676,1731358237538,-129034.80577198,0.00013877,2]
[342003677,1731358237547,-846.80503554,0.00013879,2]
[342003678,1731358237556,-12347.4846,0.00013879,2]
[342003679,1731358237566,-169.659259,0.00013879,2]
[342003680,1731358237575,-50655.64636401,0.00013879,2]
[342003681,1731358237585,-862022.2470505,0.0001388,2]
[342003682,1731358237594,-129034.80577198,0.00013882,2]
[342003683,1731358237603,-16266.56933907,0.00013884,2]
[342003684,1731358237612,-7226.01883937,0.00013887,2]
[342003685,1731358237621,-50655.64636401,0.00013888,2]
[342003686,1731358237634,-129034.80577198,0.00013889,2]
[342003687,1731358237644,-129034.80577198,0.00013889,2]
[342003688,1731358237653,-16266.56933907,0.0001389,2]
[342003689,1731358237663,-6106.40429274,0.0001389,2]
[342003690,1731358237672,-970.666,0.0001389,2]
[342003691,1731358237682,-50655.64636401,0.00013891,2]
[342003692,1731358237691,-846.80503554,0.00013893,2]
[342003693,1731358237701,-846.80503554,0.00013893,2]
[342003694,1731358237710,-6106.40429274,0.00013894,2]
[342003695,1731358237721,-50655.64636401,0.00013894,2]
[342003696,1731358237734,-181.29613865,0.00013894,2]
[342003700,1731358238165,-150.0,0.00013864,2]
[342003701,1731358238175,-5925.10815409,0.00013894,2]
[342003702,1731358238185,-846.80503554,0.00013895,2]
[342003703,1731358238194,-7928.3034993,0.00013897,2]
[342003704,1731358238206,-8338.26583977,0.00013897,2]
[342003705,1731358238215,-262.69689593,0.00013898,2]
[342003706,1731358238225,-155.53371703,0.00013899,2]
[342003707,1731358238234,-41228.99668827,0.00013899,2]
[342003708,1731358238246,-26780.1785096,0.00013899,2]
[342003709,1731358238476,-61025.63057411,0.00013899,2]
[342003710,1731358238486,-26946.63280209,0.000139,2]
[342003711,1731358238501,-61121.07782808,0.000139,2]
[342003712,1731358238620,-500.0,0.00013698,2]
[342003713,1731358238630,-773954.53642033,0.000139,2]
[342003714,1731358238641,-189.72120918,0.000139,2]
[342003715,1731358238651,-165.53011411,0.000139,2]
[342003716,1731358238660,-1013.0,0.000139,2]
[342003717,1731358238669,-300.0,0.000139,5]
[342003718,1731358238678,-160.12799901,0.000139,2]
[342003719,1731358238687,-160.12799901,0.000139,2]
[342003720,1731358238696,-160.12799901,0.000139,2]
[342003721,1731358238705,-160.12799901,0.000139,2]
[342003722,1731358238713,-160.12799901,0.000139,2]
[342003723,1731358238725,-160.12,0.000139,2]
[342003724,1731358238734,-825.36015672,0.000139,2]
[342003725,1731358238742,-155.53371702,0.000139,2]
[342003726,1731358238751,-1053.0,0.00013919,2]
[342003727,1731358238760,-500.0,0.00013956,2]
[342003728,1731358238769,-500.0,0.00013956,2]
[342003729,1731358238778,-500.0,0.00013956,2]
[342003730,1731358238787,-500.0,0.00013956,2]
[342003731,1731358238796,-500.0,0.00013956,2]
[342003732,1731358238805,-500.0,0.00013956,2]
[342003733,1731358238816,-500.0,0.00013956,2]
[342003734,1731358238825,-500.0,0.00013956,2]
[342003735,1731358238834,-500.0,0.00013956,2]
[342003736,1731358238843,-500.0,0.00013956,2]
[342003737,1731358238852,-500.0,0.00013956,2]
[342003738,1731358238860,-500.0,0.00013956,2]
[342003739,1731358238869,-500.0,0.00013956,2]
[342003740,1731358238878,-500.0,0.00013956,2]
[342003741,1731358238890,-500.0,0.00013956,2]
[342003742,1731358238899,-500.0,0.00013956,2]
[342003743,1731358238908,-500.0,0.00013956,2]
[342003744,1731358238918,-500.0,0.00013956,2]
[342003745,1731358238927,-503.42224984,0.00013956,2]
[342003746,1731358238935,-616.71676307,0.00013956,2]
[342003747,1731358238945,-500.0,0.00013956,2]
[342003748,1731358238954,-500.0,0.00013956,2]
[342003749,1731358238963,-500.0,0.00013956,2]
[342003750,1731358238972,-697.65,0.00013956,2]
[342003751,1731358238980,-500.0,0.00013956,2]
[342003752,1731358238990,-500.0,0.00013956,2]
[342003753,1731358238999,-500.0,0.00013956,2]
[342003754,1731358239008,-500.0,0.00013956,2]
[342003755,1731358239017,-500.0,0.00013956,2]
[342003756,1731358239027,-500.0,0.00013956,2]
[342003757,1731358239036,-500.0,0.00013956,2]
[342003758,1731358239044,-500.0,0.00013956,2]
[342003759,1731358239054,-500.0,0.00013956,2]
[342003760,1731358239063,-500.0,0.00013956,2]
[342003761,1731358239072,-500.0,0.00013956,2]
[342003762,1731358239081,-500.0,0.00013956,2]
[342003763,1731358239090,-500.0,0.00013956,2]
[342003764,1731358239098,-500.0,0.00013956,2]
[342003765,1731358239107,-606.06,0.00013956,2]
[342003766,1731358239116,-500.0,0.00013956,2]
[342003767,1731358239125,-500.0,0.00013956,2]
[342003768,1731358239135,-500.0,0.00013956,2]
[342003769,1731358239144,-500.0,0.00013956,2]
[342003770,1731358239153,-500.0,0.00013956,2]
[342003771,1731358239162,-500.0,0.00013956,2]
[342003772,1731358239171,-500.0,0.00013956,2]
[342003773,1731358239180,-500.0,0.00013956,2]
[342003774,1731358239189,-500.0,0.00013956,2]
[342003775,1731358239199,-500.0,0.00013956,2]
[342003776,1731358239208,-500.0,0.00013956,2]
[342003777,1731358239217,-500.0,0.00013956,2]
[342003779,1731358239226,-500.0,0.00013956,2]
[342003780,1731358239235,-500.0,0.00013956,2]
[342003781,1731358239244,-500.0,0.00013956,2]
[342003782,1731358239253,-500.0,0.00013956,2]
[342003783,1731358239262,-500.0,0.00013956,2]
[342003784,1731358239271,-500.0,0.00013956,2]
[342003785,1731358239280,-500.0,0.00013956,2]
[342003787,1731358239289,-500.0,0.00013957,2]
[342003788,1731358239298,-500.0,0.00013957,2]
[342003789,1731358239307,-2061.42,0.00013957,2]
[342003790,1731358239315,-500.0,0.00013957,2]
[342003791,1731358239324,-500.0,0.00013957,2]
[342003792,1731358239332,-500.0,0.00013957,2]
[342003793,1731358239342,-500.0,0.00013957,2]
[342003795,1731358239351,-500.0,0.00013957,2]
[342003797,1731358239359,-711.71,0.00013957,2]
[342003798,1731358239368,-500.0,0.00013957,2]
[342003799,1731358239377,-500.0,0.00013957,2]
[342003800,1731358239390,-500.0,0.00013973,2]
[342003801,1731358239399,-500.0,0.00013973,2]
[342003802,1731358239408,-500.0,0.00013973,2]
[342003803,1731358239417,-500.0,0.00013973,2]
[342003804,1731358239427,-500.0,0.00013977,2]
[342003805,1731358239436,-500.0,0.00013977,2]
[342003806,1731358239445,-500.0,0.00013977,2]
[342003807,1731358239454,-500.0,0.00013977,2]
[342003808,1731358239463,-500.0,0.00013977,2]
[342003809,1731358239472,-1089.83,0.00013977,2]
[342003810,1731358239482,-500.0,0.00013977,2]
[342003811,1731358239491,-1663.89,0.00013977,2]
[342003812,1731358239500,-500.0,0.00013977,2]
[342003813,1731358239509,-561.4375763,0.00013977,2]
[342003814,1731358239518,-500.0,0.00013977,2]
[342003815,1731358239527,-500.0,0.00013977,2]
[342003816,1731358239536,-301.22,0.00013977,2]
[342003817,1731358239546,-547.13,0.00013977,2]
[342003818,1731358239555,-500.0,0.00013977,2]
[342003819,1731358239564,-500.0,0.00013977,2]
[342003820,1731358239573,-500.0,0.00013978,2]
[342003821,1731358239583,-2061.42,0.00013978,2]
[342003822,1731358239592,-545.66,0.00013978,2]
[342003823,1731358239601,-500.0,0.00013978,2]
[342003824,1731358239610,-1272.16,0.00013978,2]
[342003825,1731358239619,-500.0,0.00013978,2]
[342003826,1731358239628,-500.0,0.00013978,2]
[342003827,1731358239643,-500.0,0.00013978,2]
[342003828,1731358239653,-500.0,0.00013978,2]
[342003829,1731358239662,-500.0,0.00013978,2]
[342003830,1731358239671,-500.0,0.00013978,2]
[342003831,1731358239680,-200.69,0.00013978,2]
[342003832,1731358239690,-500.0,0.00013978,2]
[342003833,1731358239699,-500.0,0.00013978,2]
[342003834,1731358239708,-500.0,0.00013978,2]
[342003835,1731358239716,-500.0,0.00013978,2]
[342003836,1731358239726,-500.0,0.00013978,2]
[342003837,1731358239738,-500.0,0.00013978,2]
[342003838,1731358239747,-500.0,0.00013978,2]
[342003839,1731358239755,-500.0,0.00013978,2]
[342003840,1731358239764,-500.0,0.00013978,2]
[342003841,1731358239774,-596.18,0.00013978,2]
[342003842,1731358239783,-500.0,0.00013978,2]
[342003843,1731358239793,-500.0,0.00013978,2]
[342003844,1731358239802,-500.0,0.00013978,2]
[342003845,1731358239812,-500.0,0.00013978,2]
[342003846,1731358239821,-711.71,0.00013978,2]
[342003847,1731358239830,-540.78,0.00013978,2]
[342003848,1731358239840,-500.0,0.00013978,2]
[342003849,1731358239849,-500.0,0.00013978,2]
[342003850,1731358239858,-500.0,0.00013978,2]
[342003851,1731358239867,-325.27232764,0.00013978,2]
[342003852,1731358239876,-229.91530085,0.00013978,2]
[342003853,1731358239887,-363.0690308,0.00013978,2]
[342003854,1731358239896,-500.0,0.00013978,2]
[342003855,1731358239906,-500.0,0.00013978,2]
[342003856,1731358239914,-500.0,0.00013978,2]
[342003857,1731358239924,-1187.41,0.00013978,2]
[342003858,1731358239934,-500.0,0.00013978,2]
[342003859,1731358239944,-531.65622659,0.00013978,2]
[342003860,1731358239953,-497.88484995,0.00013978,2]
[342003861,1731358239962,-500.0,0.00013978,2]
[342003862,1731358239972,-500.0,0.00013978,2]
[342003863,1731358239981,-500.0,0.00013978,2]
[342003864,1731358239991,-500.0,0.00013978,2]
[342003865,1731358240000,-500.0,0.00013979,2]
[342003866,1731358240009,-500.0,0.00013979,2]
[342003867,1731358240018,-2061.42,0.00013979,2]
[342003868,1731358240027,-2061.42,0.00013979,2]
[342003869,1731358240036,-2061.42,0.00013979,2]
[342003870,1731358240046,-2061.42,0.00013979,2]
[342003871,1731358240056,-2061.42,0.00013979,2]
[342003872,1731358240065,-2061.42,0.00013979,2]
[342003873,1731358240074,-500.0,0.00013979,2]
[342003874,1731358240083,-500.0,0.00013979,2]
[342003875,1731358240092,-500.0,0.00013979,2]
[342003876,1731358240101,-500.0,0.00013979,2]
[342003877,1731358240110,-500.0,0.00013979,2]
[342003878,1731358240119,-500.0,0.00013979,2]
[342003879,1731358240128,-500.0,0.00013979,2]
[342003880,1731358240142,-500.0,0.00013979,2]
[342003881,1731358240151,-500.0,0.00013979,2]
[342003882,1731358240161,-500.0,0.00013979,2]
[342003883,1731358240170,-500.0,0.00013979,2]
[342003884,1731358240179,-634.79194931,0.00013979,2]
[342003885,1731358240188,-500.0,0.00013979,2]
[342003886,1731358240197,-461.79481992,0.00013979,2]
[342003887,1731358240206,-500.0,0.00013979,2]
[342003888,1731358240215,-500.0,0.00013979,2]
[342003889,1731358240224,-500.0,0.00013979,2]
[342003890,1731358240234,-500.0,0.00013979,2]
[342003891,1731358240243,-500.0,0.00013979,2]
[342003892,1731358240252,-500.0,0.00013979,2]
[342003893,1731358240262,-500.0,0.00013979,2]
[342003894,1731358240271,-500.0,0.00013979,2]
[342003895,1731358240280,-500.0,0.00013979,2]
[342003896,1731358240289,-468.64,0.00013979,2]
[342003897,1731358240298,-711.71,0.00013979,2]
[342003898,1731358240307,-711.71,0.00013979,2]
[342003899,1731358240316,-711.71,0.00013979,2]
[342003900,1731358240324,-711.71,0.00013979,2]
[342003901,1731358240334,-711.71,0.00013979,2]
[342003902,1731358240343,-711.71,0.00013979,2]
[342003903,1731358240352,-500.0,0.00013979,2]
[342003904,1731358240361,-500.0,0.00013979,2]
[342003905,1731358240371,-280.45809769,0.00013979,2]
[342003906,1731358240380,-9815.8769401,0.00013987,2]
[342003907,1731358240392,-5916.6161043,0.00013987,2]
[342003908,1731358240402,-249.97404408,0.00013988,2]
[342003909,1731358240411,-1021.4034407,0.00013989,2]
[342003910,1731358240421,-2543.9153753,0.00013989,2]
[342003911,1731358240431,-8148.9269967,0.00013989,2]
[342003912,1731358240441,-2001.506139,0.0001399,2]
[342003913,1731358240451,-249.97404408,0.0001399,2]
[342003914,1731358240460,-249.97404408,0.0001399,2]
[342003915,1731358240469,-500.0,0.00013996,2]
[342003916,1731358240478,-500.0,0.00013996,2]
[342003917,1731358240487,-150.63204381,0.00013996,2]
[342003918,1731358240497,-500.0,0.00013996,2]
[342003919,1731358240507,-500.0,0.00013996,2]
[342003920,1731358240518,-500.0,0.00013996,2]
[342003921,1731358240528,-444.65810746,0.00013996,2]
[342003922,1731358240538,-387.2155275,0.00013996,2]
[342003923,1731358240548,-500.0,0.00013996,2]
[342003924,1731358240557,-616.20670157,0.00013996,2]
[342003925,1731358240566,-2061.42,0.00013998,2]
[342003926,1731358240576,-500.0,0.00013998,2]
[342003927,1731358240586,-1272.16,0.00013998,2]
[342003928,1731358240595,-500.0,0.00013998,2]
[342003929,1731358240604,-503.08270432,0.00013998,2]
[342003930,1731358240613,-500.0,0.00013998,2]
[342003931,1731358240623,-500.0,0.00013998,2]
[342003932,1731358240632,-500.0,0.00013998,2]
[342003933,1731358240643,-500.0,0.00013998,2]
[342003934,1731358240653,-500.0,0.00013998,2]
[342003935,1731358240663,-500.0,0.00013998,2]
[342003936,1731358240672,-294.78406859,0.00013998,2]
[342003937,1731358240681,-500.0,0.00013998,2]
[342003938,1731358240691,-500.0,0.00013998,2]
[342003939,1731358240700,-500.0,0.00013998,2]
[342003940,1731358240710,-500.0,0.00013998,2]
[342003941,1731358240720,-500.0,0.00013998,2]
[342003942,1731358240732,-500.0,0.00013998,2]
[342003943,1731358240741,-500.0,0.00013998,2]
[342003944,1731358240751,-596.18,0.00013998,2]
[342003945,1731358240762,-500.0,0.00013998,2]
[342003946,1731358240772,-500.0,0.00013998,2]
[342003947,1731358240781,-500.0,0.00013998,2]
[342003948,1731358240790,-500.0,0.00013998,2]
[342003949,1731358240799,-500.0,0.00013998,2]
[342003950,1731358240809,-500.0,0.00013998,2]
[342003951,1731358240818,-217.18793112,0.00013998,2]
[342003952,1731358240828,-500.0,0.00013998,2]
[342003953,1731358240838,-711.71,0.00013998,2]
[342003954,1731358240847,-500.0,0.00013998,2]
[342003955,1731358240856,-500.0,0.00013998,2]
[342003956,1731358240866,-500.0,0.00013998,2]
[342003957,1731358240875,-500.0,0.00013998,2]
[342003958,1731358240885,-500.0,0.00013998,2]
[342003959,1731358240895,-500.0,0.00013998,2]
[342003960,1731358240905,-204.81325597,0.00013998,2]
[342003961,1731358240914,-500.0,0.00013998,2]
[342003962,1731358240923,-500.0,0.00013998,2]
[342003963,1731358240932,-500.0,0.00013998,2]
[342003964,1731358240941,-500.0,0.00013998,2]
[342003966,1731358240950,-500.0,0.00013998,2]
[342003967,1731358240959,-500.0,0.00013998,2]
[342003968,1731358240968,-500.0,0.00013998,2]
[342003969,1731358240977,-697.65,0.00013998,2]
[342003970,1731358240987,-500.0,0.00013998,2]
[342003971,1731358240996,-500.0,0.00013998,2]
[342003972,1731358241005,-500.0,0.00013998,2]
[342003973,1731358241015,-500.0,0.00013998,2]
[342003974,1731358241024,-500.0,0.00013998,2]
[342003975,1731358241033,-570.0895183,0.00013998,2]
[342003976,1731358241043,-500.0,0.00013998,2]
[342003977,1731358241052,-506.41,0.00013998,2]
[342003978,1731358241061,-500.0,0.00013998,2]
[342003979,1731358241070,-500.0,0.00013998,2]
[342003980,1731358241080,-500.0,0.00013998,2]
[342003981,1731358241089,-1089.83,0.00013998,2]
[342003982,1731358241098,-500.0,0.00013998,2]
[342003983,1731358241107,-500.0,0.00013998,2]
[342003984,1731358241117,-500.0,0.00013998,2]
[342003985,1731358241126,-648.33195631,0.00013998,2]
[342003986,1731358241135,-1187.41,0.00013998,2]
[342003987,1731358241145,-1663.89,0.00013998,2]
[342003988,1731358241154,-500.0,0.00013998,2]
[342003989,1731358241163,-606.06,0.00013998,2]
[342003990,1731358241172,-500.0,0.00013998,2]
[342003991,1731358241181,-500.0,0.00013998,2]
[342003992,1731358241191,-500.0,0.00013998,2]
[342003993,1731358241200,-500.0,0.00013998,2]
[342003994,1731358241210,-500.0,0.00013998,2]
[342003995,1731358241219,-500.0,0.00013998,2]
[342003996,1731358241228,-500.0,0.00013998,2]
[342003997,1731358241237,-536.7,0.00013998,2]
[342003998,1731358241247,-500.0,0.00013998,2]
[342003999,1731358241256,-500.0,0.00013998,2]
[342004000,1731358241265,-500.0,0.00013998,2]
[342004001,1731358241274,-500.0,0.00013998,2]
[342004002,1731358241283,-500.0,0.00013998,2]
[342004003,1731358241293,-570.14,0.00013998,2]
[342004004,1731358241302,-500.0,0.00013998,2]
[342004005,1731358241311,-500.0,0.00013998,2]
[342004006,1731358241320,-547.13,0.00013998,2]
[342004007,1731358241329,-500.0,0.00013998,2]
[342004008,1731358241339,-159.5,0.00013998,2]
[342004009,1731358241348,-500.0,0.00013998,2]
[342004010,1731358241357,-155.325463,0.00013999,2]
[342004011,1731358241366,-500.0,0.00013999,2]
[342004012,1731358241376,-208.81563262,0.00013999,2]
[342004013,1731358241387,-500.0,0.00013999,2]
[342004014,1731358241396,-500.0,0.00013999,2]
[342004015,1731358241406,-500.0,0.00013999,2]
[342004016,1731358241416,-500.0,0.00013999,2]
[342004017,1731358241425,-500.0,0.00013999,2]
[342004018,1731358241435,-2061.42,0.00013999,2]
[342004019,1731358241444,-2061.42,0.00013999,2]
[342004020,1731358241454,-2061.42,0.00013999,2]
[342004021,1731358241464,-2061.42,0.00013999,2]